fUST/lending_fUST_20250920
["ID","MTS","AMOUNT","RATE_DAILY","PERIOD"]
[386532522,1758359447623,-480.0,0.00021404,2]
[386532523,1758359447633,-480.0,0.00021404,2]
[386532524,1758359447642,-480.0,0.00021404,2]
[386532525,1758359447651,-480.0,0.00021404,2]
[386532526,1758359447660,-480.0,0.00021404,2]
[386532527,1758359447669,-480.0,0.00021404,2]
[386532528,1758359447759,-480.0,0.00021404,2]
[386532529,1758359447787,-480.0,0.00021404,2]
[386532530,1758359447799,-421.95583986,0.00021404,2]
[386532531,1758359447809,-523.43,0.00021404,2]
[386532532,1758359447819,-480.0,0.00021404,2]
[386532533,1758359447829,-480.0,0.00021404,2]
[386532534,1758359447839,-480.0,0.00021404,2]
[386532535,1758359447848,-1249.23,0.00021404,2]
[386532536,1758359447858,-480.0,0.00021404,2]
[386532537,1758359447868,-667.46,0.00021404,2]
[386532538,1758359447878,-494.97038218,0.00021404,2]
[386532539,1758359447888,-480.0,0.00021404,2]
[386532540,1758359447898,-480.0,0.00021404,2]
[386532541,1758359447907,-150.35,0.00021404,2]
[386532542,1758359447917,-480.0,0.00021405,2]
[386532543,1758359447927,-480.0,0.00021405,2]
[386532544,1758359447937,-480.0,0.00021405,2]
[386532545,1758359447946,-2378.65,0.00021405,2]
[386532546,1758359447955,-480.0,0.00021405,2]
[386532547,1758359447965,-713.97,0.00021405,2]
[386532548,1758359447975,-407.4427133,0.00021508,2]
[386532549,1758359447984,-520.0,0.00021508,3]
[386532550,1758359447995,-6359.71,0.00021508,2]
[386532551,1758359448005,-480.0,0.00021508,2]
[386532552,1758359448014,-586.73,0.00021511,2]
[386532553,1758359448023,-480.0,0.00021511,2]
[386532554,1758359448033,-480.0,0.00021677,2]
[386532555,1758359448044,-480.0,0.00021677,2]
[386532556,1758359448053,-820.52,0.00021677,2]
[386532557,1758359448063,-480.0,0.00021677,2]
[386532558,1758359448073,-480.0,0.00021677,2]
[386532559,1758359448082,-602.3,0.00021677,2]
[386532560,1758359448092,-595.44,0.00021677,2]
[386532561,1758359448101,-4250.34,0.00021677,2]
[386532562,1758359448110,-480.0,0.00021677,2]
[386532563,1758359448120,-480.0,0.00021677,2]
[386532564,1758359448130,-1158.24,0.00021677,2]
[386532565,1758359448139,-480.0,0.00021677,2]
[386532566,1758359448149,-480.0,0.00021677,2]
[386532567,1758359448159,-485.7,0.00021677,2]
[386532568,1758359448169,-572.59,0.00021677,2]
[386532569,1758359448179,-480.0,0.00021677,2]
[386532570,1758359448189,-480.0,0.00021677,2]
[386532571,1758359448199,-480.0,0.00021677,2]
[386532572,1758359448209,-278.385206,0.00021677,2]
[386532573,1758359448219,-480.0,0.00021677,2]
[386532574,1758359448229,-480.0,0.00021678,2]
[386532575,1758359448239,-480.32,0.00021678,2]
[386532576,1758359448249,-480.0,0.00021678,2]
[386532577,1758359448259,-1052.09,0.00021678,2]
[386532578,1758359448268,-480.0,0.00021678,2]
[386532579,1758359448278,-480.0,0.00021678,2]
[386532580,1758359448288,-480.0,0.00021678,2]
[386532581,1758359448297,-480.0,0.00021678,2]
[386532582,1758359448306,-480.0,0.00021678,2]
[386532583,1758359448316,-480.0,0.00021678,2]
[386532584,1758359448325,-480.0,0.00021678,2]
[386532585,1758359448335,-523.43,0.00021678,2]
[386532586,1758359448344,-480.0,0.00021678,2]
[386532587,1758359448354,-531.6,0.00021678,2]
[386532588,1758359448363,-480.0,0.00021678,2]
[386532589,1758359448373,-1249.23,0.00021678,2]
[386532590,1758359448383,-480.0,0.00021678,2]
[386532591,1758359448392,-667.46,0.00021678,2]
[386532592,1758359448403,-480.0,0.00021678,2]
[386532593,1758359448412,-480.0,0.00021679,2]
[386532594,1758359448422,-480.0,0.00021679,2]
[386532595,1758359448432,-480.0,0.00021679,2]
[386532596,1758359448442,-2378.65,0.00021679,2]
[386532597,1758359448451,-480.0,0.00021679,2]
[386532598,1758359448460,-713.97,0.00021679,2]
[386532599,1758359448470,-6359.71,0.00021782,2]
[386532600,1758359448480,-480.0,0.00021782,2]
[386532601,1758359448489,-586.73,0.00021785,2]
[386532602,1758359448499,-480.0,0.00021785,2]
[386532603,1758359448509,-501.86746701,0.0002182,2]
[386532604,1758359448518,-412.3591327,0.0002182,2]
[386532605,1758359448527,-500.0,0.00021896,2]
[386532606,1758359448538,-500.0,0.00021896,2]
[386532607,1758359448548,-500.0,0.00021918,2]
[386532608,1758359448558,-500.0,0.00021941,2]
[386532609,1758359448569,-500.0,0.00021941,2]
[386532610,1758359448579,-502.73966054,0.00021941,2]
[386532611,1758359448589,-500.0,0.00021941,2]
[386532612,1758359448599,-251.63191655,0.00021951,2]
[386532613,1758359448608,-480.0,0.00021951,2]
[386532614,1758359448618,-820.52,0.00021951,2]
[386532615,1758359448629,-480.0,0.00021951,2]
[386532616,1758359448639,-480.0,0.00021951,2]
[386532617,1758359448648,-602.3,0.00021951,2]
[386532618,1758359448658,-595.44,0.00021951,2]
[386532619,1758359448668,-4250.34,0.00021951,2]
[386532620,1758359448679,-480.0,0.00021951,2]
[386532621,1758359448689,-480.0,0.00021951,2]
[386532622,1758359448699,-1158.24,0.00021951,2]
[386532623,1758359448708,-480.0,0.00021951,2]
[386532624,1758359448718,-480.0,0.00021951,2]
[386532625,1758359448728,-572.59,0.00021951,2]
[386532626,1758359448739,-480.0,0.00021951,2]
[386532627,1758359448749,-480.0,0.00021951,2]
[386532628,1758359448759,-480.0,0.00021951,2]
[386532629,1758359448769,-480.0,0.00021951,2]
[386532630,1758359448779,-480.0,0.00021952,2]
[386532631,1758359448790,-480.32,0.00021952,2]
[386532632,1758359448801,-480.0,0.00021952,2]
[386532633,1758359448811,-1052.09,0.00021952,2]
[386532634,1758359448821,-480.0,0.00021952,2]
[386532635,1758359448831,-191.78,0.00021952,2]
[386532636,1758359448840,-480.0,0.00021952,2]
[386532637,1758359448851,-211.68,0.00021952,2]
[386532638,1758359448860,-480.0,0.00021952,2]
[386532639,1758359448870,-480.0,0.00021952,2]
[386532640,1758359448879,-480.0,0.00021952,2]
[386532641,1758359448889,-523.43,0.00021952,2]
[386532642,1758359448899,-480.0,0.00021952,2]
[386532643,1758359448909,-480.0,0.00021952,2]
[386532644,1758359448919,-1249.23,0.00021952,2]
[386532645,1758359448930,-590.8994037,0.00021952,2]
[386532646,1758359448940,-667.46,0.00021952,2]
[386532647,1758359448950,-480.0,0.00021952,2]
[386532648,1758359448960,-480.0,0.00021953,2]
[386532649,1758359448970,-481.31,0.00021953,2]
[386532650,1758359448979,-480.0,0.00021953,2]
[386532651,1758359448989,-2378.65,0.00021953,2]
[386532652,1758359448999,-480.0,0.00021953,2]
[386532653,1758359449009,-713.97,0.00021953,2]
[386532654,1758359449019,-9376.49936092,0.0002199,2]
[386532655,1758359480756,150.0,0.0001935,2]
[386532656,1758359542258,158.0,0.00024,120]
[386532657,1758359543632,158.0,0.000271,120]
[386532673,1758360093556,809.32315453,0.00020555,2]
[386532674,1758360095453,3234.05532552,0.00020555,2]
[386532676,1758360136295,150.0,0.0001941,2]
[386532677,1758360137323,150.0,0.00020334,2]
[386532678,1758360180475,693.21111471,0.00020555,2]
[386532679,1758360182866,329.7361652,0.00020555,2]
[386532680,1758360182888,2440.33544917,0.00020555,2]
[386532682,1758360200150,1000.0,0.00029388,120]
[386532683,1758360209042,150.0,0.00019415,2]
[386532684,1758360210027,150.0,0.00020339,2]
[386532687,1758360277168,150.0,0.00019415,2]
[386532688,1758360277595,150.0,0.00020339,2]
[386532693,1758360343465,150.0,0.00019421,2]
[386532694,1758360343902,150.0,0.00020345,2]
[386532696,1758360377061,160.0,0.000207,2]
[386532699,1758360409138,150.0,0.00019407,2]
[386532700,1758360409578,150.0,0.00020331,2]
[386532706,1758360431128,-248.80371228,0.00021125,2]
[386532717,1758360514071,12666.0,0.00029388,120]
[386532774,1758360632578,-300.0,0.00021125,2]
[386532776,1758360632588,-964.84367216,0.00021125,2]
[386532781,1758360632633,-235.15632784,0.00021125,2]
[386532783,1758360632642,-500.0,0.00021126,2]
[386532785,1758360632651,-500.0,0.00021126,2]
[386532787,1758360632661,-234.34346088,0.00021126,2]
[386532789,1758360632670,-230.8530522,0.00021126,2]
[386532791,1758360632679,-247.13656439,0.00021126,2]
[386532793,1758360632688,-500.0,0.00021126,2]
[386532795,1758360632699,-191.12095473,0.00021126,2]
[386532797,1758360632710,-480.0,0.00021126,2]
[386532799,1758360632719,-480.0,0.00021126,2]
[386532802,1758360632738,-684.59,0.00021126,2]
[386532805,1758360632748,-480.0,0.00021126,2]
[386532806,1758360632759,-480.0,0.00021127,2]
[386532808,1758360632769,-480.0,0.00021127,2]
[386532810,1758360632779,-480.0,0.00021127,2]
[386532812,1758360632789,-480.0,0.00021127,2]
[386532814,1758360632799,-480.0,0.00021127,2]
[386532816,1758360632809,-480.0,0.00021127,2]
[386532819,1758360632820,-480.0,0.00021127,2]
[386532821,1758360632829,-879.59,0.00021127,2]
[386532823,1758360632840,-480.0,0.00021127,2]
[386532825,1758360632850,-480.0,0.00021127,2]
[386532827,1758360632860,-480.0,0.00021127,2]
[386532829,1758360632870,-480.0,0.00021127,2]
[386532831,1758360632879,-480.0,0.00021127,2]
[386532833,1758360632889,-630.98,0.00021127,2]
[386532835,1758360632899,-480.0,0.00021127,2]
[386532837,1758360632909,-521.72,0.00021127,2]
[386532839,1758360632919,-480.0,0.00021127,2]
[386532841,1758360632929,-480.0,0.00021127,2]
[386532843,1758360632939,-480.0,0.00021127,2]
[386532845,1758360632948,-634.36,0.00021127,2]
[386532847,1758360632958,-480.0,0.00021127,2]
[386532849,1758360632968,-480.0,0.00021127,2]
[386532851,1758360632978,-480.0,0.00021127,2]
[386532853,1758360632987,-480.0,0.00021127,2]
[386532855,1758360632997,-480.0,0.00021127,2]
[386532857,1758360633007,-3541.95,0.00021127,2]
[386532859,1758360633017,-567.33,0.00021127,2]
[386532861,1758360633027,-480.0,0.00021127,2]
[386532863,1758360633037,-480.0,0.00021127,2]
[386532865,1758360633047,-480.0,0.00021127,2]
[386532867,1758360633057,-480.0,0.00021127,2]
[386532869,1758360633067,-480.0,0.00021127,2]
[386532871,1758360633077,-374.49815073,0.00021127,2]
[386532873,1758360633087,-141.28543836,0.00021127,2]
[386533006,1758360643770,-186.2412451,0.00021127,2]
[386533007,1758360643780,-480.0,0.00021127,2]
[386533008,1758360643789,-1295.25,0.00021127,2]
[386533009,1758360643799,-1285.67,0.00021127,2]
[386533010,1758360643809,-480.0,0.00021127,2]
[386533011,1758360643818,-480.0,0.00021127,2]
[386533012,1758360643828,-366.93682105,0.00021127,2]
[386533054,1758361003605,662.32609289,0.00020324,2]
[386533055,1758361025285,615.8153509,0.00020128,2]
[386533064,1758361385597,432.38730877,0.00020323,2]
[386533073,1758361645092,-160.0,0.00021021,2]
[386533074,1758361645115,-1148.71342675,0.00021123,2]
[386533165,1758361840594,-51.28657325,0.00021123,2]
[386533166,1758361840603,-300.0,0.00021123,2]
[386533167,1758361840613,-300.0,0.00021123,2]
[386533168,1758361840622,-951.0,0.00021123,2]
[386533169,1758361840631,-500.0,0.00021123,2]
[386533170,1758361840640,-500.0,0.00021123,2]
[386533171,1758361840649,-500.0,0.00021123,2]
[386533172,1758361840658,-500.0,0.00021123,2]
[386533173,1758361840667,-500.0,0.00021123,2]
[386533174,1758361840676,-500.0,0.00021123,2]
[386533175,1758361840685,-500.0,0.00021123,2]
[386533176,1758361840694,-500.0,0.00021123,2]
[386533177,1758361840704,-500.0,0.00021123,2]
[386533179,1758361840713,-500.0,0.00021123,2]
[386533180,1758361840722,-500.0,0.00021123,2]
[386533181,1758361840731,-500.0,0.00021123,2]
[386533183,1758361840740,-500.0,0.00021123,2]
[386533185,1758361840749,-500.0,0.00021123,2]
[386533187,1758361840758,-500.0,0.00021123,2]
[386533189,1758361840768,-500.0,0.00021123,2]
[386533191,1758361840777,-500.0,0.00021123,2]
[386533193,1758361840786,-500.0,0.00021123,2]
[386533195,1758361840797,-500.0,0.00021123,2]
[386533197,1758361840806,-500.0,0.00021123,2]
[386533199,1758361840816,-500.0,0.00021123,2]
[386533201,1758361840825,-500.0,0.00021123,2]
[386533203,1758361840834,-500.0,0.00021123,2]
[386533205,1758361840843,-500.0,0.00021123,2]
[386533207,1758361840852,-500.0,0.00021123,2]
[386533209,1758361840862,-500.0,0.00021123,2]
[386533211,1758361840873,-500.0,0.00021123,2]
[386533213,1758361840882,-500.0,0.00021123,2]
[386533215,1758361840891,-500.0,0.00021123,2]
[386533217,1758361840901,-500.0,0.00021123,2]
[386533219,1758361840910,-500.0,0.00021123,2]
[386533221,1758361840919,-500.0,0.00021123,2]
[386533223,1758361840929,-500.0,0.00021123,2]
[386533224,1758361840938,-298.81736492,0.00021123,2]
[386533226,1758361840947,-500.0,0.00021123,2]
[386533228,1758361840957,-500.0,0.00021123,2]
[386533230,1758361840966,-500.0,0.00021123,2]
[386533231,1758361840975,-500.0,0.00021123,2]
[386533232,1758361840984,-480.0,0.00021124,2]
[386533233,1758361840994,-480.0,0.00021124,2]
[386533234,1758361841004,-694.24,0.00021124,2]
[386533235,1758361841014,-500.0,0.00021124,2]
[386533236,1758361841023,-3140.33638327,0.00021125,2]
[386533237,1758361841032,-166.0,0.00021125,2]
[386533238,1758361841041,-480.0,0.00021125,2]
[386533239,1758361841051,-480.0,0.00021125,2]
[386533240,1758361841060,-480.0,0.00021125,2]
[386533241,1758361841069,-480.0,0.00021125,2]
[386533242,1758361841078,-480.0,0.00021125,2]
[386533243,1758361841087,-480.0,0.00021125,2]
[386533244,1758361841096,-210.32293426,0.00021125,2]
[386533245,1758361841106,-586.6159755,0.00021125,2]
[386533246,1758361841115,-480.0,0.00021125,2]
[386533247,1758361841123,-480.0,0.00021125,2]
[386533248,1758361841133,-480.0,0.00021125,2]
[386533249,1758361841143,-960.16,0.00021125,2]
[386533250,1758361841152,-480.0,0.00021125,2]
[386533251,1758361841161,-480.0,0.00021125,2]
[386533252,1758361841170,-480.0,0.00021125,2]
[386533253,1758361841179,-480.0,0.00021125,2]
[386533254,1758361841189,-690.73,0.00021125,2]
[386533255,1758361841198,-480.0,0.00021125,2]
[386533256,1758361841207,-480.0,0.00021125,2]
[386533257,1758361841216,-692.99,0.00021125,2]
[386533258,1758361841225,-480.0,0.00021125,2]
[386533259,1758361841235,-480.0,0.00021125,2]
[386533260,1758361841244,-480.0,0.00021125,2]
[386533261,1758361841253,-480.0,0.00021125,2]
[386533263,1758361841263,-480.0,0.00021125,2]
[386533264,1758361841272,-480.0,0.00021125,2]
[386533265,1758361841281,-561.68,0.00021125,2]
[386533267,1758361841291,-480.0,0.00021125,2]
[386533268,1758361841300,-480.0,0.00021125,2]
[386533270,1758361841309,-3394.37,0.00021125,2]
[386533272,1758361841318,-480.0,0.00021125,2]
[386533273,1758361841327,-609.12,0.00021125,2]
[386533274,1758361841336,-480.0,0.00021125,2]
[386533275,1758361841346,-480.0,0.00021125,2]
[386533276,1758361841355,-480.0,0.00021125,2]
[386533277,1758361841365,-480.0,0.00021125,2]
[386533278,1758361841376,-480.0,0.00021125,2]
[386533279,1758361841386,-480.0,0.00021125,2]
[386533280,1758361841395,-1309.32,0.00021125,2]
[386533281,1758361841404,-1397.44,0.00021125,2]
[386533282,1758361841414,-480.0,0.00021125,2]
[386533283,1758361841423,-480.0,0.00021125,2]
[386533284,1758361841433,-480.0,0.00021125,2]
[386533285,1758361841443,-784.8,0.00021125,2]
[386533286,1758361841452,-480.0,0.00021125,2]
[386533287,1758361841462,-480.0,0.00021125,2]
[386533288,1758361841471,-243.40218685,0.00021125,2]
[386533289,1758361841480,-480.0,0.00021125,2]
[386533290,1758361841489,-480.0,0.00021125,2]
[386533291,1758361841499,-500.0,0.00021125,2]
[386533292,1758361841509,-480.0,0.00021126,2]
[386533293,1758361841519,-480.0,0.00021126,2]
[386533294,1758361841528,-495.25015497,0.00021126,2]
[386533295,1758361841537,-493.44444743,0.00021126,2]
[386533296,1758361841546,-153.3969227,0.00021126,2]
[386533297,1758361841556,-350.63212821,0.00021126,2]
[386533298,1758361841565,-312.08123047,0.00021126,2]
[386533299,1758361841575,-581.65123464,0.00021126,2]
[386533300,1758361841584,-488.24591542,0.00021126,2]
[386533301,1758361841594,-480.0,0.00021126,2]
[386533302,1758361841603,-480.0,0.00021126,2]
[386533303,1758361841612,-480.0,0.00021126,2]
[386533304,1758361841622,-396.91,0.00021126,2]
[386533305,1758361841632,-480.0,0.00021126,2]
[386533306,1758361841642,-480.0,0.00021126,2]
[386533307,1758361841651,-228.1878684,0.00021126,2]
[386533308,1758361841660,-179.97116076,0.00021126,2]
[386533309,1758361841669,-480.0,0.00021126,2]
[386533310,1758361841679,-480.0,0.00021126,2]
[386533311,1758361841688,-480.0,0.00021126,2]
[386533312,1758361841698,-578.02,0.00021126,2]
[386533313,1758361841707,-151.0,0.00021126,2]
[386533314,1758361841716,-254.3760469,0.00021126,2]
[386533315,1758361841725,-151.0,0.00021126,2]
[386533316,1758361841735,-227.38158039,0.00021126,2]
[386533317,1758361841744,-151.0,0.00021126,2]
[386533318,1758361841753,-480.0,0.00021126,2]
[386533319,1758361841762,-480.0,0.00021126,2]
[386533320,1758361841772,-502.74887469,0.00021126,2]
[386533321,1758361841781,-166.0,0.00021126,2]
[386533322,1758361841791,-162.0,0.00021126,2]
[386533323,1758361841800,-174.96828424,0.00021126,2]
[386533324,1758361841810,-156.0,0.00021126,2]
[386533325,1758361841820,-154.89695296,0.00021126,2]
[386533326,1758361841829,-156.0,0.00021126,2]
[386533327,1758361841839,-156.0,0.00021126,2]
[386533328,1758361841848,-156.0,0.00021126,2]
[386533329,1758361841858,-328.0,0.00021126,2]
[386533330,1758361841867,-328.0,0.00021126,2]
[386533331,1758361841876,-328.0,0.00021126,2]
[386533332,1758361841886,-328.0,0.00021126,2]
[386533333,1758361841895,-328.0,0.00021126,2]
[386533334,1758361841905,-328.0,0.00021126,2]
[386533335,1758361841914,-328.0,0.00021126,2]
[386533336,1758361841923,-328.0,0.00021126,2]
[386533337,1758361841932,-328.0,0.00021126,2]
[386533338,1758361841942,-328.0,0.00021126,2]
[386533339,1758361841951,-328.0,0.00021126,2]
[386533340,1758361841961,-328.0,0.00021126,2]
[386533341,1758361841970,-236.00382883,0.00021126,2]
[386533342,1758361841979,-328.0,0.00021126,2]
[386533343,1758361841988,-151.0,0.00021126,2]
[386533344,1758361841998,-151.0,0.00021126,2]
[386533345,1758361842007,-236.91182035,0.00021126,2]
[386533346,1758361842017,-480.0,0.00021126,2]
[386533347,1758361842028,-480.0,0.00021126,2]
[386533348,1758361842038,-480.0,0.00021126,2]
[386533349,1758361842047,-480.0,0.00021126,2]
[386533350,1758361842057,-1238.93,0.00021126,2]
[386533351,1758361842066,-480.0,0.00021126,2]
[386533352,1758361842075,-473.27128232,0.00021126,2]
[386533353,1758361842085,-422.0,0.00021126,2]
[386533354,1758361842094,-555.89,0.00021126,2]
[386533355,1758361842103,-151.0,0.00021126,2]
[386533356,1758361842112,-151.0,0.00021126,2]
[386533357,1758361842121,-500.0,0.00021126,2]
[386533358,1758361842131,-487.46611764,0.00021126,2]
[386533359,1758361842140,-480.0,0.00021126,2]
[386533360,1758361842149,-312.24667651,0.00021126,2]
[386533361,1758361842159,-480.0,0.00021126,2]
[386533362,1758361842168,-486.69750856,0.00021126,2]
[386533363,1758361842178,-480.0,0.00021126,2]
[386533364,1758361842188,-472.67395457,0.00021126,2]
[386533365,1758361842198,-480.0,0.00021126,2]
[386533366,1758361842207,-7086.2612297,0.00021126,2]
[386533367,1758361842216,-480.0,0.00021126,2]
[386533368,1758361842225,-480.0,0.00021126,2]
[386533369,1758361842235,-480.0,0.00021126,2]
[386533370,1758361842245,-500.0,0.00021126,2]
[386533371,1758361842255,-500.0,0.00021126,2]
[386533372,1758361842264,-626.62144246,0.00021127,2]
[386533373,1758361842275,-520.0,0.00021127,3]
[386533374,1758361842286,-13721.6098735,0.00021127,2]
[386533375,1758361842295,-480.0,0.00021127,2]
[386533376,1758361842305,-41124.3002867,0.00021127,2]
[386533377,1758361842314,-845.91,0.00021127,2]
[386533378,1758361842324,-2805.46,0.00021127,2]
[386533379,1758361842333,-480.0,0.00021127,2]
[386533380,1758361842343,-7244.29,0.00021127,2]
[386533381,1758361842352,-480.0,0.00021127,2]
[386533382,1758361842362,-538.02,0.00021128,2]
[386533383,1758361842376,-480.0,0.00021128,2]
[386533384,1758361842386,-500.0,0.00021128,2]
[386533385,1758361842395,-2100.67,0.00021162,3]
[386533386,1758361842404,-1050.33,0.00021162,3]
[386533387,1758361842414,-525.17,0.00021162,3]
[386533388,1758361842423,-262.58,0.00021162,3]
[386533389,1758361842432,-787.77,0.00021162,3]
[386533390,1758361842442,-500.0,0.00021171,2]
[386533391,1758361842451,-19054.32607689,0.00021173,2]
[386533392,1758361842461,-419.86983328,0.00021173,2]
[386533393,1758361842470,-500.0,0.00021203,2]
[386533394,1758361842480,-500.0,0.00021203,2]
[386533395,1758361842489,-166.10426353,0.00021203,2]
[386533396,1758361842498,-151.839764,0.00021204,2]
[386533397,1758361842508,-151.0,0.00021204,2]
[386533398,1758361842517,-151.0,0.00021204,2]
[386533399,1758361842526,-151.0,0.00021204,2]
[386533400,1758361842535,-151.0,0.00021204,2]
[386533401,1758361842643,-151.0,0.00021204,2]
[386533402,1758361842652,-180.020066,0.00021204,2]
[386533403,1758361842661,-151.0,0.00021204,2]
[386533404,1758361842670,-151.0,0.00021204,2]
[386533405,1758361842679,-152.89919,0.00021204,2]
[386533406,1758361842689,-151.0,0.00021204,2]
[386533407,1758361842698,-151.0,0.00021204,2]
[386533408,1758361842707,-151.0,0.00021204,2]
[386533409,1758361842716,-151.0,0.00021204,2]
[386533410,1758361842725,-152.038175,0.00021204,2]
[386533411,1758361842734,-151.0,0.00021204,2]
[386533412,1758361842743,-166.579602,0.00021204,2]
[386533413,1758361842753,-151.0,0.00021204,2]
[386533414,1758361842762,-151.0,0.00021204,2]
[386533415,1758361842772,-151.0,0.00021204,2]
[386533416,1758361842781,-180.74939,0.00021204,2]
[386533417,1758361842790,-151.0,0.00021204,2]
[386533418,1758361842799,-180.74939,0.00021204,2]
[386533419,1758361842808,-151.0,0.00021204,2]
[386533420,1758361842817,-180.74939,0.00021204,2]
[386533421,1758361842826,-151.0,0.00021204,2]
[386533422,1758361842835,-613.454418,0.00021204,2]
[386533423,1758361842845,-180.74939,0.00021204,2]
[386533424,1758361842854,-613.454418,0.00021204,2]
[386533425,1758361842863,-613.454418,0.00021204,2]
[386533426,1758361842871,-186.895729,0.00021204,2]
[386533427,1758361842880,-613.454418,0.00021204,2]
[386533428,1758361842890,-186.895729,0.00021204,2]
[386533429,1758361842899,-186.895729,0.00021204,2]
[386533430,1758361842908,-186.895729,0.00021204,2]
[386533431,1758361842917,-205.930684,0.00021204,2]
[386533432,1758361842927,-205.930684,0.00021204,2]
[386533433,1758361842936,-205.930684,0.00021204,2]
[386533434,1758361842945,-205.930684,0.00021204,2]
[386533435,1758361842954,-463.523419,0.00021204,2]
[386533436,1758361842964,-151.0,0.00021204,2]
[386533437,1758361842973,-463.523419,0.00021204,2]
[386533438,1758361842982,-463.523419,0.00021204,2]
[386533439,1758361842992,-463.523419,0.00021204,2]
[386533440,1758361843001,-151.0,0.00021204,2]
[386533441,1758361843010,-151.0,0.00021204,2]
[386533442,1758361843019,-151.0,0.00021204,2]
[386533443,1758361843029,-151.0,0.00021204,2]
[386533444,1758361843038,-151.0,0.00021204,2]
[386533445,1758361843047,-209.530407,0.00021204,2]
[386533446,1758361843057,-151.0,0.00021204,2]
[386533447,1758361843066,-151.0,0.00021204,2]
[386533448,1758361843076,-151.0,0.00021204,2]
[386533449,1758361843086,-151.0,0.00021204,2]
[386533450,1758361843095,-151.0,0.00021204,2]
[386533451,1758361843104,-151.0,0.00021204,2]
[386533452,1758361843113,-151.0,0.00021204,2]
[386533453,1758361843123,-151.64122,0.00021204,2]
[386533454,1758361843132,-151.0,0.00021204,2]
[386533455,1758361843142,-151.0,0.00021204,2]
[386533456,1758361843151,-185.343337,0.00021204,2]
[386533457,1758361843161,-185.343337,0.00021204,2]
[386533458,1758361843170,-185.343337,0.00021204,2]
[386533459,1758361843180,-151.0,0.00021204,2]
[386533460,1758361843190,-185.343337,0.00021204,2]
[386533461,1758361843200,-500.0,0.00021204,2]
[386533462,1758361843209,-139564.50710216,0.00021204,2]
[386533468,1758361843306,-5074.54238113,0.00021204,2]
[386533469,1758361843317,-8557.88746608,0.00021204,2]
[386533470,1758361843333,-503.57,0.00021128,2]
[386533471,1758361843342,-823.09510949,0.00021204,2]
[386533475,1758361844099,-480.0,0.00021123,2]
[386533476,1758361844109,-151.96718138,0.00021126,2]
[386533477,1758361844119,-727.07405321,0.00021204,2]
[386533478,1758361844130,-315.98676429,0.00021204,2]
[386533488,1758362043785,5292.0,0.00027397,120]
[386533490,1758362144134,-454.68640733,0.00021098,6]
[386533491,1758362144194,-151.0,0.00021947,7]
[386533492,1758362144222,-151.0,0.00021948,7]
[386533493,1758362144248,-151.0,0.00021948,7]
[386533494,1758362144273,-151.0,0.00021948,7]
[386533495,1758362144299,-151.0,0.00021948,7]
[386533496,1758362144324,-232.995646,0.00021948,7]